[Event "Titled Tuesday Blitz February 14 Late 2023"]
[White "Liu, Casper"]
[Black "Strahov, Andrej"]
[WhiteFideId "1454153"]
[BlackFideId "4165489"]
[WhiteElo "2278"]
[BlackElo "2398"]
[Result "0-1"]
[Round "04"]
[TimeControl "180+2"]
[Date "2023.02.14"]
[WhiteClock "0:00:06"]
[BlackClock "0:00:38"]

1. d4 {[%clk 0:02:57]}  Nf6 {[%clk 0:02:55]} 2. Nf3 {[%clk 0:02:56]}  d5 {[%clk 0:02:54]} 3. Bf4 {[%clk 0:02:56]}  c5 {[%clk 0:02:53]} 4. e3 {[%clk 0:02:57]}  Qb6 {[%clk 0:02:50]} 5. Nbd2 {[%clk 0:02:57]}  Bf5 {[%clk 0:02:44]} 6. dxc5 {[%clk 0:02:36]}  Qxc5 {[%clk 0:02:41]} 7. Nd4 {[%clk 0:02:36]}  Bd7 {[%clk 0:02:40]} 8. N2b3 {[%clk 0:02:32]}  Qc8 {[%clk 0:02:37]} 9. c4 {[%clk 0:02:23]}  e6 {[%clk 0:02:32]} 10. Qd2 {[%clk 0:01:56]}  Nc6 {[%clk 0:02:27]} 11. a3 {[%clk 0:01:46]}  Be7 {[%clk 0:02:10]} 12. Rc1 {[%clk 0:01:44]}  O-O {[%clk 0:02:08]} 13. c5 {[%clk 0:01:37]}  Ne4 {[%clk 0:02:02]} 14. Qc2 {[%clk 0:01:37]}  Bh4 {[%clk 0:01:30]} 15. Bg3 {[%clk 0:01:27]}  Bf6 {[%clk 0:01:27]} 16. Nb5 {[%clk 0:01:17]}  e5 {[%clk 0:01:13]} 17. Bd3 {[%clk 0:01:15]}  Bf5 {[%clk 0:01:10]} 18. f3 {[%clk 0:01:12]}  Nxg3 {[%clk 0:01:09]} 19. hxg3 {[%clk 0:01:13]}  Bxd3 {[%clk 0:01:01]} 20. Qxd3 {[%clk 0:01:14]}  e4 {[%clk 0:01:01]} 21. fxe4 {[%clk 0:01:02]}  Ne5 {[%clk 0:01:00]} 22. Qxd5 {[%clk 0:00:57]}  Qg4 {[%clk 0:00:59]} 23. Kf2 {[%clk 0:00:20]}  Rad8 {[%clk 0:00:58]} 24. Nd6 {[%clk 0:00:20]}  b6 {[%clk 0:00:58]} 25. Nd2 {[%clk 0:00:19]}  bxc5 {[%clk 0:00:57]} 26. Rxc5 {[%clk 0:00:20]}  Qg5 {[%clk 0:00:46]} 27. Nf3 {[%clk 0:00:19]}  Ng4+ {[%clk 0:00:45]} 28. Kf1 {[%clk 0:00:11]}  Nxe3+ {[%clk 0:00:45]} 29. Kg1 {[%clk 0:00:08]}  Nxd5 {[%clk 0:00:45]} 30. Nxg5 {[%clk 0:00:09]}  Bd4+ {[%clk 0:00:41]} 31. Kh2 {[%clk 0:00:04]}  Bxc5 {[%clk 0:00:41]} 32. Ndxf7 {[%clk 0:00:04]}  Rxf7 {[%clk 0:00:38]} 33. Nxf7 {[%clk 0:00:05]}  Kxf7 {[%clk 0:00:38]} 34. exd5 {[%clk 0:00:06]}  Rxd5 {[%clk 0:00:39]} 35. Rc1 {[%clk 0:00:06]}  Rh5# {[%clk 0:00:38]} 0-1


[Site "https://www.chess.com"]

[Event "Titled Tuesday Blitz February 14 Late 2023"]
[White "Ramirez Allo, Eduardo"]
[Black "Benmesbah, Natacha"]
[WhiteFideId "2224178"]
[BlackFideId "642002"]
[WhiteElo "2274"]
[BlackElo "2261"]
[Result "0-1"]
[Round "04"]
[TimeControl "180+2"]
[Date "2023.02.14"]
[WhiteClock "0:00:06"]
[BlackClock "0:00:14"]

1. Nf3 {[%clk 0:03:00]}  c5 {[%clk 0:02:56]} 2. g3 {[%clk 0:03:00]}  d5 {[%clk 0:02:54]} 3. Bg2 {[%clk 0:03:00]}  Nc6 {[%clk 0:02:54]} 4. d4 {[%clk 0:03:00]}  cxd4 {[%clk 0:02:51]} 5. Nxd4 {[%clk 0:03:01]}  Nf6 {[%clk 0:02:40]} 6. O-O {[%clk 0:03:00]}  e5 {[%clk 0:02:38]} 7. Nxc6 {[%clk 0:03:00]}  bxc6 {[%clk 0:02:38]} 8. c4 {[%clk 0:03:01]}  Be6 {[%clk 0:02:38]} 9. Nc3 {[%clk 0:02:59]}  Be7 {[%clk 0:02:30]} 10. Qa4 {[%clk 0:02:57]}  O-O {[%clk 0:02:19]} 11. Rd1 {[%clk 0:02:53]}  d4 {[%clk 0:02:00]} 12. Bg5 {[%clk 0:02:09]}  Qc7 {[%clk 0:01:27]} 13. Ne4 {[%clk 0:01:46]}  Nxe4 {[%clk 0:01:27]} 14. Bxe7 {[%clk 0:01:46]}  Nxf2 {[%clk 0:01:24]} 15. Bxf8 {[%clk 0:01:44]}  Nxd1 {[%clk 0:01:24]} 16. Bxg7 {[%clk 0:01:36]}  Nxb2 {[%clk 0:01:20]} 17. Qc2 {[%clk 0:01:11]}  Kxg7 {[%clk 0:00:48]} 18. Qxb2 {[%clk 0:01:11]}  Rb8 {[%clk 0:00:47]} 19. Qd2 {[%clk 0:01:10]}  f6 {[%clk 0:00:38]} 20. Rc1 {[%clk 0:00:54]}  Qb6 {[%clk 0:00:38]} 21. Kf1 {[%clk 0:00:44]}  c5 {[%clk 0:00:35]} 22. Qd3 {[%clk 0:00:23]}  Qb2 {[%clk 0:00:33]} 23. Rc2 {[%clk 0:00:21]}  Qb1+ {[%clk 0:00:30]} 24. Kf2 {[%clk 0:00:21]}  Rb2 {[%clk 0:00:27]} 25. Rxb2 {[%clk 0:00:14]}  Qxb2 {[%clk 0:00:28]} 26. a3 {[%clk 0:00:12]}  Qc3 {[%clk 0:00:28]} 27. Qe4 {[%clk 0:00:07]}  Qxc4 {[%clk 0:00:25]} 28. Qb7+ {[%clk 0:00:06]}  Bf7 {[%clk 0:00:24]} 29. h4 {[%clk 0:00:06]}  Qb3 {[%clk 0:00:23]} 30. Qxa7 {[%clk 0:00:06]}  Qe3+ {[%clk 0:00:23]} 31. Kf1 {[%clk 0:00:07]}  d3 {[%clk 0:00:22]} 32. Bd5 {[%clk 0:00:05]}  Qxe2+ {[%clk 0:00:20]} 33. Kg1 {[%clk 0:00:06]}  Qh5 {[%clk 0:00:19]} 34. Bxf7 {[%clk 0:00:01]}  Qxf7 {[%clk 0:00:20]} 35. Qxc5 {[%clk 0:00:02]}  Qd7 {[%clk 0:00:20]} 36. Qc1 {[%clk 0:00:03]}  d2 {[%clk 0:00:20]} 37. Qd1 {[%clk 0:00:03]}  Qd4+ {[%clk 0:00:20]} 38. Kf1 {[%clk 0:00:04]}  Qd3+ {[%clk 0:00:19]} 39. Kf2 {[%clk 0:00:05]}  Qd4+ {[%clk 0:00:18]} 40. Ke2 {[%clk 0:00:05]}  f5 {[%clk 0:00:19]} 41. Qxd2 {[%clk 0:00:05]}  Qc4+ {[%clk 0:00:19]} 42. Qd3 {[%clk 0:00:06]}  Qa2+ {[%clk 0:00:18]} 43. Kf1 {[%clk 0:00:06]}  Qa1+ {[%clk 0:00:18]} 44. Kg2 {[%clk 0:00:06]}  Qb2+ {[%clk 0:00:19]} 45. Kh3 {[%clk 0:00:06]}  Qb8 {[%clk 0:00:18]} 46. Qxf5 {[%clk 0:00:06]}  Qa8 {[%clk 0:00:17]} 47. Qxe5+ {[%clk 0:00:05]}  Kg6 {[%clk 0:00:17]} 48. h5+ {[%clk 0:00:05]}  Kf7 {[%clk 0:00:15]} 49. Qf5+ {[%clk 0:00:04]}  Kg7 {[%clk 0:00:14]} 50. Qg5+ {[%clk 0:00:05]}  Kf7 {[%clk 0:00:14]} 51. Qf5+ {[%clk 0:00:05]}  Kg7 {[%clk 0:00:14]} 52. Qg4+ {[%clk 0:00:05]}  Kf7 {[%clk 0:00:15]} 53. Qf3+ {[%clk 0:00:06]}  Qxf3 {[%clk 0:00:14]} 0-1


[Site "https://www.chess.com"]

[Event "Titled Tuesday Blitz February 14 Late 2023"]
[White "ArchibaldCerveza29"]
[Black "Stachanczyk, Jacek"]
[BlackFideId "1116657"]
[WhiteElo "2469"]
[BlackElo "2147"]
[Result "1-0"]
[Round "04"]
[TimeControl "180+2"]
[Date "2023.02.14"]
[WhiteClock "0:00:11"]
[BlackClock "0:00:13"]

1. e4 {[%clk 0:02:57]}  c5 {[%clk 0:02:59]} 2. Nf3 {[%clk 0:02:54]}  d6 {[%clk 0:02:59]} 3. d4 {[%clk 0:02:54]}  cxd4 {[%clk 0:02:58]} 4. Nxd4 {[%clk 0:02:55]}  Nf6 {[%clk 0:02:58]} 5. Nc3 {[%clk 0:02:56]}  g6 {[%clk 0:02:58]} 6. Be3 {[%clk 0:02:55]}  Bg7 {[%clk 0:02:58]} 7. f3 {[%clk 0:02:55]}  O-O {[%clk 0:02:58]} 8. Qd2 {[%clk 0:02:55]}  Nc6 {[%clk 0:02:58]} 9. O-O-O {[%clk 0:02:56]}  d5 {[%clk 0:02:58]} 10. Nxc6 {[%clk 0:02:51]}  bxc6 {[%clk 0:02:57]} 11. Qe1 {[%clk 0:02:52]}  e5 {[%clk 0:02:44]} 12. Bc5 {[%clk 0:02:33]}  Re8 {[%clk 0:02:41]} 13. Bc4 {[%clk 0:02:31]}  d4 {[%clk 0:02:37]} 14. Na4 {[%clk 0:02:06]}  Qc7 {[%clk 0:02:24]} 15. c3 {[%clk 0:02:04]}  Nd7 {[%clk 0:01:18]} 16. cxd4 {[%clk 0:01:37]}  Nxc5 {[%clk 0:01:11]} 17. dxc5 {[%clk 0:01:38]}  Rb8 {[%clk 0:01:05]} 18. Qc3 {[%clk 0:01:20]}  h5 {[%clk 0:00:54]} 19. Rd3 {[%clk 0:01:19]}  Be6 {[%clk 0:00:35]} 20. Bxe6 {[%clk 0:00:53]}  Rxe6 {[%clk 0:00:35]} 21. Rhd1 {[%clk 0:00:53]}  Re7 {[%clk 0:00:35]} 22. b3 {[%clk 0:00:43]}  Kh7 {[%clk 0:00:30]} 23. Nb2 {[%clk 0:00:41]}  Rb5 {[%clk 0:00:29]} 24. Rd8 {[%clk 0:00:30]}  a5 {[%clk 0:00:26]} 25. Kc2 {[%clk 0:00:18]}  Qa7 {[%clk 0:00:25]} 26. Na4 {[%clk 0:00:17]}  Rb4 {[%clk 0:00:24]} 27. R1d6 {[%clk 0:00:16]}  Qa6 {[%clk 0:00:23]} 28. Rd2 {[%clk 0:00:14]}  Qa7 {[%clk 0:00:18]} 29. g4 {[%clk 0:00:13]}  hxg4 {[%clk 0:00:17]} 30. fxg4 {[%clk 0:00:14]}  Bh6 {[%clk 0:00:18]} 31. Rf2 {[%clk 0:00:12]}  Bf4 {[%clk 0:00:16]} 32. h4 {[%clk 0:00:12]}  Bh6 {[%clk 0:00:14]} 33. g5 {[%clk 0:00:12]}  Bg7 {[%clk 0:00:14]} 34. h5 {[%clk 0:00:13]}  gxh5 {[%clk 0:00:14]} 35. Qf3 {[%clk 0:00:11]}  Re6 {[%clk 0:00:13]} 36. Qxh5+ {[%clk 0:00:11]} 1-0


[Site "https://www.chess.com"]

[Event "Titled Tuesday Blitz February 14 Late 2023"]
[White "Rios Escobar, Adan"]
[Black "Bochnicka, Vladimir"]
[WhiteFideId "3403645"]
[BlackFideId "14943450"]
[WhiteElo "2234"]
[BlackElo "2327"]
[Result "1-0"]
[Round "04"]
[TimeControl "180+2"]
[Date "2023.02.14"]
[WhiteClock "0:00:14"]
[BlackClock "0:00:11"]

1. d4 {[%clk 0:02:58]}  Nf6 {[%clk 0:02:58]} 2. g3 {[%clk 0:02:57]}  g6 {[%clk 0:02:59]} 3. Bg2 {[%clk 0:02:56]}  Bg7 {[%clk 0:02:59]} 4. e4 {[%clk 0:02:55]}  d6 {[%clk 0:03:00]} 5. Ne2 {[%clk 0:02:56]}  O-O {[%clk 0:03:01]} 6. O-O {[%clk 0:02:56]}  Nbd7 {[%clk 0:03:00]} 7. Nbc3 {[%clk 0:02:56]}  e5 {[%clk 0:02:57]} 8. h3 {[%clk 0:02:55]}  c6 {[%clk 0:02:54]} 9. a4 {[%clk 0:02:55]}  Qe7 {[%clk 0:02:49]} 10. Be3 {[%clk 0:02:55]}  Rd8 {[%clk 0:02:49]} 11. g4 {[%clk 0:02:47]}  Nf8 {[%clk 0:02:46]} 12. Qd2 {[%clk 0:02:41]}  Ne6 {[%clk 0:02:31]} 13. d5 {[%clk 0:02:40]}  cxd5 {[%clk 0:02:27]} 14. exd5 {[%clk 0:02:40]}  Nf8 {[%clk 0:02:18]} 15. Ng3 {[%clk 0:02:37]}  h5 {[%clk 0:02:13]} 16. g5 {[%clk 0:02:33]}  Ne8 {[%clk 0:02:03]} 17. Nce4 {[%clk 0:02:18]}  Kh7 {[%clk 0:01:54]} 18. c4 {[%clk 0:02:09]}  b6 {[%clk 0:01:54]} 19. b4 {[%clk 0:02:07]}  Nd7 {[%clk 0:01:53]} 20. Rac1 {[%clk 0:02:00]}  f5 {[%clk 0:01:52]} 21. gxf6 {[%clk 0:01:57]}  Ndxf6 {[%clk 0:01:49]} 22. Bg5 {[%clk 0:01:56]}  Bf5 {[%clk 0:01:36]} 23. Qe3 {[%clk 0:01:52]}  Qf8 {[%clk 0:01:25]} 24. Nxf5 {[%clk 0:01:44]}  gxf5 {[%clk 0:01:25]} 25. Ng3 {[%clk 0:01:29]}  Kg6 {[%clk 0:01:01]} 26. Bh4 {[%clk 0:01:21]}  Bh6 {[%clk 0:00:56]} 27. Qe2 {[%clk 0:01:16]}  Rd7 {[%clk 0:00:48]} 28. Rc3 {[%clk 0:01:14]}  Ng7 {[%clk 0:00:38]} 29. Rd1 {[%clk 0:01:07]}  Kh7 {[%clk 0:00:38]} 30. Qc2 {[%clk 0:01:02]}  e4 {[%clk 0:00:31]} 31. f3 {[%clk 0:00:50]}  Re8 {[%clk 0:00:29]} 32. fxe4 {[%clk 0:00:50]}  f4 {[%clk 0:00:21]} 33. e5+ {[%clk 0:00:49]}  Kh8 {[%clk 0:00:21]} 34. exf6 {[%clk 0:00:48]}  fxg3 {[%clk 0:00:19]} 35. fxg7+ {[%clk 0:00:45]}  Qxg7 {[%clk 0:00:19]} 36. Rxg3 {[%clk 0:00:43]}  Qf7 {[%clk 0:00:18]} 37. Rf1 {[%clk 0:00:40]}  Bf4 {[%clk 0:00:16]} 38. Qb2+ {[%clk 0:00:25]}  Be5 {[%clk 0:00:15]} 39. Rxf7 {[%clk 0:00:23]}  Bxb2 {[%clk 0:00:16]} 40. Rxd7 {[%clk 0:00:24]}  Re1+ {[%clk 0:00:16]} 41. Bf1 {[%clk 0:00:23]}  Bd4+ {[%clk 0:00:16]} 42. Kg2 {[%clk 0:00:23]}  Rb1 {[%clk 0:00:15]} 43. Rd3 {[%clk 0:00:17]}  Rb2+ {[%clk 0:00:14]} 44. Kf3 {[%clk 0:00:17]}  Be5 {[%clk 0:00:11]} 45. Be2 {[%clk 0:00:17]}  Rb1 {[%clk 0:00:10]} 46. Bg3 {[%clk 0:00:16]}  Bf6 {[%clk 0:00:09]} 47. Bxd6 {[%clk 0:00:16]}  Rg1 {[%clk 0:00:09]} 48. Bg3 {[%clk 0:00:15]}  h4 {[%clk 0:00:09]} 49. Bf2 {[%clk 0:00:16]}  Rh1 {[%clk 0:00:08]} 50. Ke4 {[%clk 0:00:15]}  Rc1 {[%clk 0:00:09]} 51. Rf3 {[%clk 0:00:15]}  Rxc4+ {[%clk 0:00:10]} 52. Bxc4 {[%clk 0:00:14]}  Bg7 {[%clk 0:00:09]} 53. Bd4 {[%clk 0:00:13]}  Bxd4 {[%clk 0:00:09]} 54. Kxd4 {[%clk 0:00:14]}  Kg8 {[%clk 0:00:10]} 55. Re3 {[%clk 0:00:14]}  b5 {[%clk 0:00:11]} 56. Re8# {[%clk 0:00:14]} 1-0


[Site "https://www.chess.com"]

[Event "Titled Tuesday Blitz February 14 Late 2023"]
[White "Slavin, Alexey"]
[Black "Taboas Rodriguez, Daniel"]
[WhiteFideId "24104388"]
[BlackFideId "2208466"]
[WhiteElo "2364"]
[BlackElo "2371"]
[Result "0-1"]
[Round "04"]
[TimeControl "180+2"]
[Date "2023.02.14"]
[WhiteClock "0:00:04"]
[BlackClock "0:01:15"]

1. e4 {[%clk 0:03:00]}  e5 {[%clk 0:02:59]} 2. Nf3 {[%clk 0:03:00]}  Nc6 {[%clk 0:02:59]} 3. c3 {[%clk 0:03:00]}  Nf6 {[%clk 0:02:59]} 4. d4 {[%clk 0:02:59]}  d5 {[%clk 0:02:46]} 5. Bb5 {[%clk 0:02:55]}  Nxe4 {[%clk 0:02:40]} 6. Nxe5 {[%clk 0:02:54]}  Bd7 {[%clk 0:02:40]} 7. Nxd7 {[%clk 0:02:48]}  Qxd7 {[%clk 0:02:39]} 8. O-O {[%clk 0:02:48]}  Be7 {[%clk 0:02:38]} 9. Nd2 {[%clk 0:02:44]}  Nxd2 {[%clk 0:02:33]} 10. Bxd2 {[%clk 0:02:43]}  O-O {[%clk 0:02:33]} 11. Qf3 {[%clk 0:02:29]}  a6 {[%clk 0:02:31]} 12. Bd3 {[%clk 0:02:25]}  Rae8 {[%clk 0:02:31]} 13. Rae1 {[%clk 0:02:22]}  Bd6 {[%clk 0:02:28]} 14. Qh5 {[%clk 0:02:17]}  g6 {[%clk 0:02:27]} 15. Qh4 {[%clk 0:02:11]}  Rxe1 {[%clk 0:02:24]} 16. Rxe1 {[%clk 0:02:11]}  Re8 {[%clk 0:02:25]} 17. Rxe8+ {[%clk 0:01:49]}  Qxe8 {[%clk 0:02:26]} 18. g3 {[%clk 0:01:46]}  Qe7 {[%clk 0:02:23]} 19. Qg4 {[%clk 0:01:41]}  Qe6 {[%clk 0:02:19]} 20. Qe2 {[%clk 0:01:33]}  Qxe2 {[%clk 0:02:17]} 21. Bxe2 {[%clk 0:01:33]}  Ne7 {[%clk 0:02:15]} 22. Bd3 {[%clk 0:01:29]}  f5 {[%clk 0:02:15]} 23. Kg2 {[%clk 0:01:28]}  Kf7 {[%clk 0:02:16]} 24. h3 {[%clk 0:01:24]}  Ke6 {[%clk 0:02:15]} 25. f4 {[%clk 0:01:21]}  Ng8 {[%clk 0:02:15]} 26. g4 {[%clk 0:01:17]}  Nf6 {[%clk 0:02:15]} 27. gxf5+ {[%clk 0:01:17]}  gxf5 {[%clk 0:02:15]} 28. c4 {[%clk 0:01:07]}  Ne4 {[%clk 0:02:13]} 29. cxd5+ {[%clk 0:01:02]}  Kxd5 {[%clk 0:02:12]} 30. Be3 {[%clk 0:01:00]}  Be7 {[%clk 0:01:57]} 31. Kf3 {[%clk 0:00:58]}  Bf6 {[%clk 0:01:57]} 32. Bc2 {[%clk 0:00:43]}  Bxd4 {[%clk 0:01:53]} 33. Bb3+ {[%clk 0:00:42]}  Kc5 {[%clk 0:01:53]} 34. Be6 {[%clk 0:00:40]}  Bxe3 {[%clk 0:01:39]} 35. Bxf5 {[%clk 0:00:39]}  Nd6 {[%clk 0:01:35]} 36. Bxh7 {[%clk 0:00:35]}  Bd4 {[%clk 0:01:34]} 37. b3 {[%clk 0:00:31]}  Kd5 {[%clk 0:01:33]} 38. Kg4 {[%clk 0:00:30]}  Ke6 {[%clk 0:01:33]} 39. Bd3 {[%clk 0:00:24]}  Kf6 {[%clk 0:01:33]} 40. h4 {[%clk 0:00:24]}  Nf7 {[%clk 0:01:24]} 41. h5 {[%clk 0:00:20]}  a5 {[%clk 0:01:25]} 42. a4 {[%clk 0:00:18]}  b6 {[%clk 0:01:24]} 43. Be4 {[%clk 0:00:15]}  Bb2 {[%clk 0:01:24]} 44. Bd3 {[%clk 0:00:15]}  Bc1 {[%clk 0:01:24]} 45. Be4 {[%clk 0:00:15]}  Nh6+ {[%clk 0:01:24]} 46. Kf3 {[%clk 0:00:13]}  Nf5 {[%clk 0:01:24]} 47. Bd3 {[%clk 0:00:10]}  Nd4+ {[%clk 0:01:24]} 48. Ke4 {[%clk 0:00:10]}  Nxb3 {[%clk 0:01:24]} 49. h6 {[%clk 0:00:09]}  Kg6 {[%clk 0:01:21]} 50. Kd5+ {[%clk 0:00:10]}  Kxh6 {[%clk 0:01:21]} 51. f5 {[%clk 0:00:10]}  Nc5 {[%clk 0:01:17]} 52. Kc6 {[%clk 0:00:10]}  Nxd3 {[%clk 0:01:16]} 53. Kxc7 {[%clk 0:00:09]}  Be3 {[%clk 0:01:16]} 54. Kc6 {[%clk 0:00:09]}  Kg5 {[%clk 0:01:15]} 55. Kb5 {[%clk 0:00:03]}  Kxf5 {[%clk 0:01:15]} 56. Kc4 {[%clk 0:00:04]}  Nb2+ {[%clk 0:01:15]} 0-1


[Site "https://www.chess.com"]

[Event "Titled Tuesday Blitz February 14 Late 2023"]
[White "Bulgurlu, Okan"]
[Black "Buchenau, Frank"]
[WhiteFideId "6352316"]
[BlackFideId "4604350"]
[WhiteElo "1908"]
[BlackElo "2222"]
[Result "0-1"]
[Round "04"]
[TimeControl "180+2"]
[Date "2023.02.14"]
[WhiteClock "0:00:17"]
[BlackClock "0:01:02"]

1. e4 {[%clk 0:03:00]}  e6 {[%clk 0:03:00]} 2. Nf3 {[%clk 0:03:00]}  d5 {[%clk 0:03:00]} 3. d3 {[%clk 0:03:00]}  c5 {[%clk 0:02:54]} 4. Be2 {[%clk 0:02:59]}  Nc6 {[%clk 0:02:54]} 5. O-O {[%clk 0:02:59]}  Bd6 {[%clk 0:02:51]} 6. exd5 {[%clk 0:02:58]}  exd5 {[%clk 0:02:50]} 7. d4 {[%clk 0:02:58]}  c4 {[%clk 0:02:44]} 8. Nc3 {[%clk 0:02:56]}  Nge7 {[%clk 0:02:42]} 9. Re1 {[%clk 0:02:52]}  a6 {[%clk 0:02:38]} 10. Bg5 {[%clk 0:02:16]}  f6 {[%clk 0:02:36]} 11. Bh4 {[%clk 0:02:13]}  O-O {[%clk 0:02:35]} 12. Bg3 {[%clk 0:02:04]}  Bb4 {[%clk 0:02:35]} 13. Rb1 {[%clk 0:01:59]}  Nf5 {[%clk 0:02:30]} 14. a3 {[%clk 0:01:49]}  Bxc3 {[%clk 0:02:29]} 15. bxc3 {[%clk 0:01:50]}  b5 {[%clk 0:02:25]} 16. Nh4 {[%clk 0:01:33]}  Nxg3 {[%clk 0:02:20]} 17. hxg3 {[%clk 0:01:33]}  Re8 {[%clk 0:02:19]} 18. Bf3 {[%clk 0:01:28]}  Rxe1+ {[%clk 0:02:03]} 19. Qxe1 {[%clk 0:01:26]}  g5 {[%clk 0:02:00]} 20. Bxd5+ {[%clk 0:00:49]}  Qxd5 {[%clk 0:02:01]} 21. Qe8+ {[%clk 0:00:50]}  Kg7 {[%clk 0:02:01]} 22. Nf5+ {[%clk 0:00:47]}  Qxf5 {[%clk 0:01:43]} 23. Qxc6 {[%clk 0:00:46]}  Ra7 {[%clk 0:01:22]} 24. Re1 {[%clk 0:00:45]}  Qd7 {[%clk 0:01:09]} 25. Qb6 {[%clk 0:00:19]}  Qc7 {[%clk 0:01:03]} 26. Qxc7+ {[%clk 0:00:17]}  Rxc7 {[%clk 0:01:02]} 0-1


[Site "https://www.chess.com"]

[Event "Titled Tuesday Blitz February 14 Late 2023"]
[White "dodoucb"]
[Black "Smith, Garrett L"]
[BlackFideId "2024829"]
[WhiteElo "2458"]
[BlackElo "2047"]
[Result "0-1"]
[Round "04"]
[TimeControl "180+2"]
[Date "2023.02.14"]
[WhiteClock "0:00:17"]
[BlackClock "0:00:56"]

1. Nf3 {[%clk 0:03:00]}  c5 {[%clk 0:03:00]} 2. d3 {[%clk 0:02:57]}  g6 {[%clk 0:02:56]} 3. g3 {[%clk 0:02:56]}  Bg7 {[%clk 0:02:56]} 4. Bg2 {[%clk 0:02:57]}  Nc6 {[%clk 0:02:54]} 5. O-O {[%clk 0:02:58]}  e5 {[%clk 0:02:54]} 6. c4 {[%clk 0:02:57]}  Nge7 {[%clk 0:02:54]} 7. Nc3 {[%clk 0:02:57]}  O-O {[%clk 0:02:52]} 8. a3 {[%clk 0:02:57]}  d6 {[%clk 0:02:48]} 9. Rb1 {[%clk 0:02:57]}  a5 {[%clk 0:02:48]} 10. Nd5 {[%clk 0:02:48]}  Nxd5 {[%clk 0:02:43]} 11. cxd5 {[%clk 0:02:47]}  Ne7 {[%clk 0:02:42]} 12. Ne1 {[%clk 0:02:34]}  b5 {[%clk 0:02:41]} 13. e4 {[%clk 0:02:20]}  f5 {[%clk 0:02:38]} 14. f4 {[%clk 0:02:10]}  Kh8 {[%clk 0:02:00]} 15. Nf3 {[%clk 0:02:02]}  c4 {[%clk 0:01:49]} 16. fxe5 {[%clk 0:01:32]}  cxd3 {[%clk 0:01:39]} 17. exd6 {[%clk 0:01:28]}  Qxd6 {[%clk 0:01:38]} 18. Qxd3 {[%clk 0:01:25]}  fxe4 {[%clk 0:01:38]} 19. Qxe4 {[%clk 0:00:59]}  Bf5 {[%clk 0:01:37]} 20. Qf4 {[%clk 0:00:29]}  Qxf4 {[%clk 0:01:28]} 21. Bxf4 {[%clk 0:00:30]}  Bxb1 {[%clk 0:01:28]} 22. Rxb1 {[%clk 0:00:30]}  Nxd5 {[%clk 0:01:28]} 23. Bg5 {[%clk 0:00:27]}  h6 {[%clk 0:01:24]} 24. Bd2 {[%clk 0:00:26]}  Rfd8 {[%clk 0:01:07]} 25. Nh4 {[%clk 0:00:25]}  Ne7 {[%clk 0:01:01]} 26. Be3 {[%clk 0:00:19]}  Rac8 {[%clk 0:00:57]} 27. Bb6 {[%clk 0:00:18]}  Bd4+ {[%clk 0:00:55]} 28. Bxd4+ {[%clk 0:00:17]}  Rxd4 {[%clk 0:00:56]} 0-1


[Site "https://www.chess.com"]

[Event "Titled Tuesday Blitz February 14 Late 2023"]
[White "Djabri,Massinas"]
[Black "Le Goff, Ronan"]
[WhiteFideId "7905726"]
[BlackFideId "612073"]
[WhiteElo "2231"]
[BlackElo "2320"]
[Result "0-1"]
[Round "04"]
[TimeControl "180+2"]
[Date "2023.02.14"]
[WhiteClock "0:00:16"]
[BlackClock "0:01:02"]

1. d4 {[%clk 0:03:00]}  Nf6 {[%clk 0:02:58]} 2. c4 {[%clk 0:02:57]}  e6 {[%clk 0:02:55]} 3. Nf3 {[%clk 0:02:55]}  Bb4+ {[%clk 0:02:53]} 4. Bd2 {[%clk 0:02:55]}  Bxd2+ {[%clk 0:02:52]} 5. Qxd2 {[%clk 0:02:56]}  O-O {[%clk 0:02:52]} 6. Nc3 {[%clk 0:02:56]}  d5 {[%clk 0:02:52]} 7. e3 {[%clk 0:02:57]}  c5 {[%clk 0:02:51]} 8. cxd5 {[%clk 0:02:50]}  Nxd5 {[%clk 0:02:50]} 9. dxc5 {[%clk 0:02:50]}  Nc6 {[%clk 0:02:42]} 10. Bc4 {[%clk 0:02:39]}  Nxc3 {[%clk 0:02:40]} 11. Qxc3 {[%clk 0:02:36]}  a5 {[%clk 0:02:40]} 12. O-O {[%clk 0:02:31]}  Qe7 {[%clk 0:02:37]} 13. Be2 {[%clk 0:02:19]}  e5 {[%clk 0:02:29]} 14. Bb5 {[%clk 0:02:00]}  f6 {[%clk 0:02:27]} 15. Rfd1 {[%clk 0:01:51]}  Be6 {[%clk 0:02:19]} 16. Bxc6 {[%clk 0:01:46]}  bxc6 {[%clk 0:02:04]} 17. e4 {[%clk 0:01:42]}  Rfb8 {[%clk 0:02:01]} 18. Rd6 {[%clk 0:01:40]}  Rb4 {[%clk 0:01:54]} 19. Nd2 {[%clk 0:01:29]}  Rab8 {[%clk 0:01:52]} 20. b3 {[%clk 0:01:25]}  a4 {[%clk 0:01:50]} 21. bxa4 {[%clk 0:00:48]}  Bf7 {[%clk 0:01:46]} 22. Rxc6 {[%clk 0:00:40]}  Rxa4 {[%clk 0:01:46]} 23. Rb6 {[%clk 0:00:29]}  Rc8 {[%clk 0:01:37]} 24. Nb3 {[%clk 0:00:22]}  Rc4 {[%clk 0:01:24]} 25. Qe3 {[%clk 0:00:20]}  h6 {[%clk 0:01:21]} 26. h3 {[%clk 0:00:18]}  Qd7 {[%clk 0:01:19]} 27. a4 {[%clk 0:00:18]}  Rxa4 {[%clk 0:01:13]} 28. Rxa4 {[%clk 0:00:18]}  Qxa4 {[%clk 0:01:13]} 29. c6 {[%clk 0:00:19]}  Rxc6 {[%clk 0:01:09]} 30. Rxc6 {[%clk 0:00:19]}  Qxc6 {[%clk 0:01:10]} 31. Nc5 {[%clk 0:00:20]}  Kh7 {[%clk 0:01:08]} 32. Kh2 {[%clk 0:00:21]}  Bg6 {[%clk 0:01:07]} 33. g4 {[%clk 0:00:20]}  Qb5 {[%clk 0:01:07]} 34. h4 {[%clk 0:00:19]}  Qf1 {[%clk 0:01:05]} 35. h5 {[%clk 0:00:19]}  Bf7 {[%clk 0:01:05]} 36. Nd3 {[%clk 0:00:17]}  Bc4 {[%clk 0:01:04]} 37. Ne1 {[%clk 0:00:16]}  Be2 {[%clk 0:01:03]} 38. f3 {[%clk 0:00:16]}  Qxe1 {[%clk 0:01:02]} 0-1


[Site "https://www.chess.com"]

[Event "Titled Tuesday Blitz February 14 Late 2023"]
[White "Davidson, Kevin"]
[Black "Torres Dominguez, David"]
[WhiteFideId "2056810"]
[BlackFideId "2220857"]
[WhiteElo "2154"]
[BlackElo "1994"]
[Result "0-1"]
[Round "04"]
[TimeControl "180+2"]
[Date "2023.02.14"]
[WhiteClock "0:00:20"]
[BlackClock "0:00:55"]

1. e4 {[%clk 0:02:58]}  Nc6 {[%clk 0:02:58]} 2. Nf3 {[%clk 0:02:58]}  e5 {[%clk 0:02:58]} 3. Bb5 {[%clk 0:02:57]}  Nge7 {[%clk 0:02:57]} 4. d4 {[%clk 0:02:57]}  exd4 {[%clk 0:02:56]} 5. Nxd4 {[%clk 0:02:57]}  g6 {[%clk 0:02:54]} 6. Nxc6 {[%clk 0:02:57]}  Nxc6 {[%clk 0:02:52]} 7. Bxc6 {[%clk 0:02:57]}  bxc6 {[%clk 0:02:50]} 8. Qd4 {[%clk 0:02:57]}  f6 {[%clk 0:02:47]} 9. b3 {[%clk 0:02:53]}  Bg7 {[%clk 0:02:24]} 10. Bb2 {[%clk 0:02:52]}  Qe7 {[%clk 0:02:20]} 11. Nd2 {[%clk 0:02:50]}  d6 {[%clk 0:02:15]} 12. O-O-O {[%clk 0:02:48]}  Be6 {[%clk 0:02:09]} 13. h4 {[%clk 0:02:39]}  h6 {[%clk 0:01:56]} 14. h5 {[%clk 0:02:22]}  g5 {[%clk 0:01:50]} 15. f3 {[%clk 0:02:00]}  O-O {[%clk 0:01:46]} 16. g4 {[%clk 0:01:55]}  c5 {[%clk 0:01:40]} 17. Qd3 {[%clk 0:01:44]}  Qf7 {[%clk 0:01:40]} 18. c4 {[%clk 0:01:38]}  a5 {[%clk 0:01:35]} 19. a4 {[%clk 0:01:27]}  Rfb8 {[%clk 0:01:28]} 20. Bc3 {[%clk 0:01:18]}  Rxb3 {[%clk 0:01:16]} 21. Nxb3 {[%clk 0:01:13]}  Bxc4 {[%clk 0:01:16]} 22. Qe3 {[%clk 0:00:42]}  Bxb3 {[%clk 0:01:14]} 23. Rd2 {[%clk 0:00:43]}  Bxa4 {[%clk 0:01:11]} 24. Rb2 {[%clk 0:00:38]}  Bb3 {[%clk 0:01:07]} 25. Bxa5 {[%clk 0:00:32]}  Rxa5 {[%clk 0:01:02]} 26. Qxb3 {[%clk 0:00:30]}  Ra1+ {[%clk 0:00:56]} 27. Rb1 {[%clk 0:00:20]}  Qxb3 {[%clk 0:00:55]} 0-1


[Site "https://www.chess.com"]